fUST/lending_fUST_20241113
["ID","MTS","AMOUNT","RATE_DAILY","PERIOD"]
[342154056,1731513032965,-500.0,0.00019178,2]
[342154059,1731513032975,-500.0,0.00019178,2]
[342154062,1731513032985,-500.0,0.00019178,2]
[342154065,1731513032995,-500.0,0.00019178,2]
[342154068,1731513033004,-190.93946463,0.00019178,2]
[342154071,1731513033016,-309.06053537,0.00019178,2]
[342154074,1731513033027,-500.0,0.00019178,2]
[342154077,1731513033037,-500.0,0.00019178,2]
[342154080,1731513033048,-500.0,0.00019178,2]
[342154083,1731513033058,-500.0,0.00019178,2]
[342154086,1731513033069,-500.0,0.00019178,2]
[342154089,1731513033081,-1175.72,0.00019178,2]
[342154091,1731513033091,-500.0,0.00019178,2]
[342154093,1731513033102,-500.0,0.00019178,2]
[342154095,1731513033112,-500.0,0.00019178,2]
[342154097,1731513033122,-510.65189682,0.00019178,2]
[342154099,1731513033133,-500.0,0.00019178,2]
[342154102,1731513033144,-500.0,0.00019178,2]
[342154105,1731513033153,-1181.6,0.00019178,2]
[342154106,1731513033163,-500.0,0.00019178,2]
[342154107,1731513033174,-500.0,0.00019178,2]
[342154108,1731513033184,-500.0,0.00019178,2]
[342154109,1731513033193,-500.0,0.00019178,2]
[342154110,1731513033203,-500.0,0.00019178,2]
[342154111,1731513033214,-500.0,0.00019178,2]
[342154112,1731513033223,-301.71980061,0.00019178,2]
[342154113,1731513033233,-500.0,0.00019178,2]
[342154114,1731513033244,-500.0,0.00019178,2]
[342154115,1731513033254,-500.0,0.00019178,2]
[342154116,1731513033263,-500.0,0.00019178,2]
[342154118,1731513033272,-500.0,0.00019178,2]
[342154120,1731513033282,-500.0,0.00019178,2]
[342154122,1731513033292,-500.0,0.00019178,2]
[342154124,1731513033301,-500.0,0.00019178,2]
[342154126,1731513033311,-500.0,0.00019178,2]
[342154127,1731513033324,-500.0,0.00019178,2]
[342154129,1731513033335,-257.8966236,0.00019352,2]
[342154131,1731513033345,-403.54870857,0.00019451,2]
[342154134,1731513033355,-500.0,0.00019452,2]
[342154135,1731513033365,-325.5089567,0.00019452,2]
[342154138,1731513033376,-500.0,0.00019452,2]
[342154140,1731513033387,-500.0,0.00019452,2]
[342154141,1731513033397,-1175.72,0.00019452,2]
[342154143,1731513033406,-482.06895127,0.00019452,2]
[342154145,1731513033416,-500.0,0.00019452,2]
[342154147,1731513033426,-1181.6,0.00019452,2]
[342154148,1731513033435,-455.79040599,0.00019452,2]
[342154150,1731513033445,-500.0,0.00019452,2]
[342154152,1731513033455,-449.69439677,0.00019452,2]
[342154154,1731513033464,-500.0,0.00019452,2]
[342154155,1731513033474,-500.0,0.00019452,2]
[342154156,1731513033484,-500.0,0.00019452,2]
[342154157,1731513033494,-500.0,0.00019452,2]
[342154158,1731513033503,-500.0,0.00019452,2]
[342154159,1731513033513,-500.0,0.00019452,2]
[342154161,1731513033523,-500.0,0.00019452,2]
[342154163,1731513033532,-500.0,0.00019452,2]
[342154164,1731513033542,-500.0,0.00019452,2]
[342154165,1731513033552,-500.0,0.00019452,2]
[342154166,1731513033562,-500.0,0.00019452,2]
[342154167,1731513033574,-1523.09,0.00019726,2]
[342154168,1731513033584,-495.93,0.00019726,2]
[342154169,1731513033594,-500.0,0.00019726,2]
[342154170,1731513033604,-500.0,0.00019726,2]
[342154171,1731513033614,-1175.72,0.00019726,2]
[342154172,1731513033624,-1181.6,0.00019726,2]
[342154173,1731513033635,-500.0,0.00019726,2]
[342154174,1731513033645,-500.0,0.00019726,2]
[342154175,1731513033655,-500.0,0.00019726,2]
[342154176,1731513033665,-500.0,0.00019726,2]
[342154177,1731513033678,-500.0,0.00019726,2]
[342154178,1731513033688,-500.0,0.00019726,2]
[342154179,1731513033701,-500.0,0.00019726,2]
[342154180,1731513033710,-500.0,0.00019726,2]
[342154181,1731513033720,-257.89662358,0.00019763,2]
[342154182,1731513033730,-921.99,0.00019999,2]
[342154183,1731513033741,-510.77,0.00019999,2]
[342154184,1731513033751,-766.80374963,0.00019999,2]
[342154201,1731513039050,-828.6657855,0.00019999,2]
[342154202,1731513039060,-836.18625037,0.00019999,2]
[342154203,1731513039071,-500.0,0.00019999,2]
[342154204,1731513039085,-500.0,0.00019999,2]
[342154205,1731513039095,-500.0,0.00019999,2]
[342154206,1731513039104,-500.0,0.00019999,2]
[342154207,1731513039113,-4357.13,0.00019999,2]
[342154208,1731513039123,-500.0,0.00019999,2]
[342154209,1731513039132,-500.0,0.00019999,2]
[342154210,1731513039142,-1169.27083333,0.0002,2]
[342154211,1731513039151,-75.31160164,0.0002,2]
[342154239,1731513041489,-234.93882238,0.0002,2]
[342154240,1731513041591,-880.60382895,0.0002,2]
[342154241,1731513041602,-500.0,0.0002,2]
[342154242,1731513041611,-500.0,0.0002,2]
[342154243,1731513041621,-500.0,0.0002,2]
[342154244,1731513041631,-409.28,0.0002,2]
[342154245,1731513041641,-500.0,0.0002,2]
[342154246,1731513041651,-1523.09,0.0002,2]
[342154247,1731513041660,-500.0,0.0002,2]
[342154248,1731513041670,-500.0,0.0002,2]
[342154249,1731513041680,-1175.72,0.0002,2]
[342154250,1731513041690,-1181.6,0.0002,2]
[342154251,1731513041704,-500.0,0.0002,2]
[342154252,1731513041714,-500.0,0.0002,2]
[342154253,1731513041723,-500.0,0.0002,2]
[342154254,1731513041733,-500.0,0.0002,2]
[342154255,1731513041743,-500.0,0.0002,2]
[342154256,1731513041755,-257.89662358,0.00020173,2]
[342154257,1731513041765,-500.0,0.00020272,2]
[342154258,1731513041777,-500.0,0.00020273,2]
[342154259,1731513041788,-500.0,0.00020273,2]
[342154260,1731513041798,-500.0,0.00020273,2]
[342154261,1731513041808,-500.0,0.00020273,2]
[342154262,1731513041818,-1523.09,0.00020273,2]
[342154263,1731513041830,-500.0,0.00020273,2]
[342154264,1731513041841,-500.0,0.00020273,2]
[342154265,1731513041850,-1175.72,0.00020273,2]
[342154266,1731513041860,-921.99,0.00020273,2]
[342154267,1731513041870,-1181.6,0.00020273,2]
[342154268,1731513041880,-510.77,0.00020273,2]
[342154269,1731513041889,-500.0,0.00020273,2]
[342154270,1731513041899,-1602.99,0.00020273,2]
[342154271,1731513041909,-500.0,0.00020273,2]
[342154272,1731513041919,-500.0,0.00020273,2]
[342154273,1731513041928,-4357.13,0.00020273,2]
[342154274,1731513041938,-500.0,0.00020273,2]
[342154275,1731513041947,-500.0,0.00020273,2]
[342154276,1731513041957,-500.0,0.00020273,2]
[342154277,1731513041967,-500.0,0.00020273,2]
[342154278,1731513041977,-500.0,0.00020273,2]
[342154279,1731513041987,-500.0,0.00020546,2]
[342154280,1731513041997,-500.0,0.00020546,2]
[342154281,1731513042007,-500.0,0.00020546,2]
[342154282,1731513042016,-500.0,0.00020546,2]
[342154283,1731513042025,-500.0,0.00020546,2]
[342154284,1731513042035,-500.0,0.00020546,2]
[342154285,1731513042044,-500.0,0.00020546,2]
[342154286,1731513042054,-500.0,0.00020546,2]
[342154287,1731513042063,-500.0,0.00020546,2]
[342154288,1731513042073,-500.0,0.00020546,2]
[342154289,1731513042091,-500.0,0.00020546,2]
[342154290,1731513042101,-500.0,0.00020546,2]
[342154291,1731513042110,-500.0,0.00020546,2]
[342154292,1731513042120,-500.0,0.00020546,2]
[342154293,1731513042129,-500.0,0.00020546,2]
[342154294,1731513042139,-500.0,0.00020546,2]
[342154295,1731513042149,-500.0,0.00020546,2]
[342154296,1731513042158,-500.0,0.00020546,2]
[342154297,1731513042168,-500.0,0.00020546,2]
[342154298,1731513042177,-500.0,0.00020546,2]
[342154299,1731513042187,-500.0,0.00020546,2]
[342154300,1731513042196,-500.0,0.00020546,2]
[342154301,1731513042205,-500.0,0.00020546,2]
[342154302,1731513042215,-500.0,0.00020546,2]
[342154303,1731513042224,-500.0,0.00020546,2]
[342154304,1731513042233,-500.0,0.00020546,2]
[342154305,1731513042243,-500.0,0.00020546,2]
[342154306,1731513042252,-500.0,0.00020546,2]
[342154307,1731513042261,-500.0,0.00020546,2]
[342154308,1731513042271,-500.0,0.00020546,2]
[342154309,1731513042280,-500.0,0.00020546,2]
[342154310,1731513042289,-500.0,0.00020546,2]
[342154311,1731513042298,-500.0,0.00020546,2]
[342154312,1731513042308,-261.5182641,0.00020546,2]
[342154313,1731513042317,-500.0,0.00020546,2]
[342154314,1731513042326,-500.0,0.00020546,2]
[342154315,1731513042340,-500.0,0.00020546,2]
[342154316,1731513042349,-500.0,0.00020546,2]
[342154317,1731513042359,-500.0,0.00020546,2]
[342154318,1731513042368,-500.0,0.00020546,2]
[342154319,1731513042378,-500.0,0.00020546,2]
[342154320,1731513042387,-500.0,0.00020546,2]
[342154321,1731513042397,-500.0,0.00020546,2]
[342154322,1731513042407,-500.0,0.00020546,2]
[342154323,1731513042416,-500.0,0.00020546,2]
[342154324,1731513042426,-500.0,0.00020546,2]
[342154325,1731513042436,-500.0,0.00020546,2]
[342154326,1731513042445,-500.0,0.00020546,2]
[342154327,1731513042455,-500.0,0.00020546,2]
[342154328,1731513042466,-500.0,0.00020546,2]
[342154329,1731513042476,-500.0,0.00020546,2]
[342154330,1731513042485,-500.0,0.00020546,2]
[342154331,1731513042495,-500.0,0.00020546,2]
[342154332,1731513042504,-500.0,0.00020546,2]
[342154333,1731513042514,-500.0,0.00020546,2]
[342154334,1731513042524,-500.0,0.00020546,2]
[342154335,1731513042534,-500.0,0.00020546,2]
[342154336,1731513042544,-500.0,0.00020546,2]
[342154337,1731513042553,-500.0,0.00020546,2]
[342154338,1731513042563,-500.0,0.00020546,2]
[342154339,1731513042572,-500.0,0.00020546,2]
[342154340,1731513042586,-500.0,0.00020546,2]
[342154341,1731513042595,-500.0,0.00020546,2]
[342154342,1731513042605,-500.0,0.00020546,2]
[342154343,1731513042711,-500.0,0.00020546,2]
[342154344,1731513042722,-500.0,0.00020546,2]
[342154345,1731513042731,-500.0,0.00020546,2]
[342154346,1731513042742,-320.98095039,0.00020546,2]
[342154347,1731513042752,-500.0,0.00020546,2]
[342154348,1731513042762,-500.0,0.00020546,2]
[342154349,1731513042771,-500.0,0.00020546,2]
[342154350,1731513042783,-500.0,0.00020546,2]
[342154351,1731513042793,-500.0,0.00020546,2]
[342154352,1731513042803,-500.0,0.00020546,2]
[342154353,1731513042812,-500.0,0.00020546,2]
[342154354,1731513042821,-500.0,0.00020546,2]
[342154355,1731513042832,-500.0,0.00020546,2]
[342154356,1731513042841,-500.0,0.00020546,2]
[342154357,1731513042851,-500.0,0.00020546,2]
[342154358,1731513042860,-500.0,0.00020546,2]
[342154359,1731513042870,-500.0,0.00020546,2]
[342154360,1731513042880,-500.0,0.00020546,2]
[342154361,1731513042890,-500.0,0.00020546,2]
[342154362,1731513042900,-500.0,0.00020546,2]
[342154363,1731513042910,-350.0,0.00020546,2]
[342154364,1731513042919,-500.0,0.00020546,2]
[342154365,1731513042928,-500.0,0.00020546,2]
[342154366,1731513042938,-500.0,0.00020546,2]
[342154367,1731513042948,-500.0,0.00020547,2]
[342154368,1731513042957,-500.0,0.00020547,2]
[342154369,1731513042968,-500.0,0.00020547,2]
[342154370,1731513042977,-500.0,0.00020547,2]
[342154371,1731513042987,-1523.09,0.00020547,2]
[342154372,1731513042997,-500.0,0.00020547,2]
[342154373,1731513043006,-500.0,0.00020547,2]
[342154374,1731513043016,-1175.72,0.00020547,2]
[342154375,1731513043025,-921.99,0.00020547,2]
[342154376,1731513043035,-1181.6,0.00020547,2]
[342154377,1731513043045,-510.77,0.00020547,2]
[342154378,1731513043054,-500.0,0.00020547,2]
[342154379,1731513043064,-1602.99,0.00020547,2]
[342154380,1731513043074,-500.0,0.00020547,2]
[342154381,1731513043087,-500.0,0.00020547,2]
[342154382,1731513043096,-4357.13,0.00020547,2]
[342154383,1731513043107,-500.0,0.00020547,2]
[342154384,1731513043116,-500.0,0.00020547,2]
[342154385,1731513043125,-500.0,0.00020547,2]
[342154386,1731513043135,-500.0,0.00020547,2]
[342154387,1731513043145,-501.47383952,0.00020573,2]
[342154388,1731513043154,-257.89662358,0.00020584,2]
[342154389,1731513043164,-12595.58891331,0.00020721,2]
[342154390,1731513043173,-500.0,0.00020821,2]
[342154391,1731513043183,-500.0,0.00020821,2]
[342154392,1731513043192,-500.0,0.00020821,2]
[342154393,1731513043201,-500.0,0.00020821,2]
[342154394,1731513043211,-1523.09,0.00020821,2]
[342154395,1731513043220,-500.0,0.00020821,2]
[342154396,1731513043230,-500.0,0.00020821,2]
[342154397,1731513043239,-1175.72,0.00020821,2]
[342154398,1731513043248,-921.99,0.00020821,2]
[342154399,1731513043258,-1181.6,0.00020821,2]
[342154400,1731513043267,-510.77,0.00020821,2]
[342154401,1731513043277,-500.0,0.00020821,2]
[342154402,1731513043286,-1602.99,0.00020821,2]
[342154403,1731513043296,-500.0,0.00020821,2]
[342154405,1731513043307,-500.0,0.00020821,2]
[342154406,1731513043316,-4357.13,0.00020821,2]
[342154407,1731513043326,-500.0,0.00020821,2]
[342154408,1731513043340,-500.0,0.00020821,2]
[342154409,1731513043351,-500.0,0.00020821,2]
[342154410,1731513043360,-500.0,0.00020821,2]
[342154411,1731513043369,-150.112235,0.000209,4]
[342154412,1731513043379,-500.0,0.00020973,2]
[342154413,1731513043388,-500.62720764,0.00020973,2]
[342154414,1731513043398,-500.0,0.00020973,2]
[342154415,1731513043407,-533.0,0.00020973,2]
[342154416,1731513043416,-500.0,0.00020973,2]
[342154417,1731513043425,-257.89662358,0.00020994,2]
[342154418,1731513043434,-660.57499594,0.00020995,2]
[342154419,1731513043444,-261.67177948,0.00020999,2]
[342154420,1731513043453,-254.76066602,0.00020999,2]
[342154421,1731513043462,-1934917.36,0.00021,2]
[342154422,1731513043472,-500.0,0.00021095,2]
[342154423,1731513043481,-500.0,0.00021095,2]
[342154424,1731513043491,-500.0,0.00021095,2]
[342154425,1731513043501,-500.0,0.00021095,2]
[342154427,1731513043510,-1523.09,0.00021095,2]
[342154429,1731513043519,-500.0,0.00021095,2]
[342154431,1731513043529,-391.2,0.00021095,2]
[342154432,1731513043538,-1175.72,0.00021095,2]
[342154434,1731513043547,-921.99,0.00021095,2]
[342154435,1731513043557,-1181.6,0.00021095,2]
[342154436,1731513043566,-510.77,0.00021095,2]
[342154437,1731513043575,-500.0,0.00021095,2]
[342154439,1731513043589,-1602.99,0.00021095,2]
[342154440,1731513043598,-500.0,0.00021095,2]
[342154441,1731513043608,-500.0,0.00021095,2]
[342154442,1731513043617,-193.0,0.00021095,2]
[342154443,1731513043626,-4357.13,0.00021095,2]
[342154444,1731513043635,-500.0,0.00021095,2]
[342154445,1731513043645,-500.0,0.00021095,2]
[342154446,1731513043655,-500.0,0.00021095,2]
[342154447,1731513043664,-500.0,0.00021369,2]
[342154448,1731513043673,-500.0,0.00021369,2]
[342154449,1731513043683,-500.0,0.00021369,2]
[342154450,1731513043694,-623.54,0.00021369,2]
[342154452,1731513043707,-1523.09,0.00021369,2]
[342154454,1731513043716,-500.0,0.00021369,2]
[342154455,1731513043726,-1175.72,0.00021369,2]
[342154457,1731513043736,-921.99,0.00021369,2]
[342154458,1731513043746,-1181.6,0.00021369,2]
[342154459,1731513043756,-510.77,0.00021369,2]
[342154460,1731513043765,-500.0,0.00021369,2]
[342154461,1731513043775,-1602.99,0.00021369,2]
[342154462,1731513043786,-500.0,0.00021369,2]
[342154463,1731513043795,-500.0,0.00021369,2]
[342154464,1731513043804,-4357.13,0.00021369,2]
[342154465,1731513043814,-500.0,0.00021369,2]
[342154466,1731513043824,-500.0,0.00021369,2]
[342154467,1731513043836,-500.0,0.00021369,2]
[342154468,1731513043846,-5292.4734976,0.000214,2]
[342154469,1731513043855,-370.1191921,0.00021521,2]
[342154470,1731513043865,-1000.0,0.00021521,2]
[342154471,1731513043874,-500.0,0.00021643,2]
[342154472,1731513043884,-289.57,0.00021643,2]
[342154473,1731513043893,-500.0,0.00021643,2]
[342154474,1731513043903,-1523.09,0.00021643,2]
[342154475,1731513043912,-500.0,0.00021643,2]
[342154476,1731513043922,-1175.72,0.00021643,2]
[342154477,1731513043931,-921.99,0.00021643,2]
[342154478,1731513043941,-1181.6,0.00021643,2]
[342154479,1731513043952,-510.77,0.00021643,2]
[342154484,1731513044171,-545.60925361,0.00021643,2]
[342154485,1731513044181,-1602.99,0.00021643,2]
[342154486,1731513044191,-500.0,0.00021643,2]
[342154487,1731513044201,-500.0,0.00021643,2]
[342154488,1731513044210,-4357.13,0.00021643,2]
[342154489,1731513044219,-500.0,0.00021643,2]
[342154490,1731513044229,-500.0,0.00021643,2]
[342154491,1731513044239,-500.0,0.00021643,2]
[342154492,1731513044248,-150.0,0.000218,2]
[342154493,1731513044258,-1114.26,0.000219,2]
[342154494,1731513044267,-500.0,0.00021917,2]
[342154495,1731513044277,-500.0,0.00021917,2]
[342154496,1731513044287,-1523.09,0.00021917,2]
[342154497,1731513044298,-500.0,0.00021917,2]
[342154498,1731513044308,-1175.72,0.00021917,2]
[342154499,1731513044318,-921.99,0.00021917,2]
[342154500,1731513044328,-1181.6,0.00021917,2]
[342154501,1731513044342,-510.77,0.00021917,2]
[342154502,1731513044352,-1602.99,0.00021917,2]
[342154503,1731513044362,-500.0,0.00021917,2]
[342154504,1731513044373,-500.0,0.00021917,2]
[342154505,1731513044383,-4357.13,0.00021917,2]
[342154506,1731513044392,-500.0,0.00021917,2]
[342154507,1731513044402,-500.0,0.00021917,2]
[342154508,1731513044412,-500.0,0.00021917,2]
[342154509,1731513044422,-159.23481266,0.0002192,7]
[342154510,1731513044432,-159.23,0.0002192,7]
[342154511,1731513044442,-6035.87358822,0.00021986,2]
[342154512,1731513044451,-660.57499591,0.00022008,2]
[342154513,1731513044461,-500.0,0.00022191,2]
[342154514,1731513044472,-500.0,0.00022191,2]
[342154515,1731513044482,-1523.09,0.00022191,2]
[342154516,1731513044491,-500.0,0.00022191,2]
[342154517,1731513044501,-1175.72,0.00022191,2]
[342154518,1731513044510,-921.99,0.00022191,2]
[342154519,1731513044521,-1181.6,0.00022191,2]
[342154520,1731513044533,-510.77,0.00022191,2]
[342154521,1731513044543,-1602.99,0.00022191,2]
[342154522,1731513044553,-500.0,0.00022191,2]
[342154523,1731513044563,-500.0,0.00022191,2]
[342154524,1731513044573,-4357.13,0.00022191,2]
[342154525,1731513044585,-500.0,0.00022191,2]
[342154526,1731513044594,-500.0,0.00022191,2]
[342154527,1731513044603,-500.0,0.00022191,2]
[342154528,1731513044613,-153.0,0.00022345,2]
[342154529,1731513044623,-500.0,0.00022465,2]
[342154530,1731513044633,-500.0,0.00022465,2]
[342154531,1731513044642,-1523.09,0.00022465,2]
[342154532,1731513044652,-500.0,0.00022465,2]
[342154533,1731513044662,-1175.72,0.00022465,2]
[342154534,1731513044671,-921.99,0.00022465,2]
[342154535,1731513044682,-1181.6,0.00022465,2]
[342154536,1731513044700,-510.77,0.00022465,2]
[342154537,1731513044710,-1602.99,0.00022465,2]
[342154538,1731513044720,-500.0,0.00022465,2]
[342154539,1731513044730,-500.0,0.00022465,2]
[342154540,1731513044744,-4357.13,0.00022465,2]
[342154541,1731513044754,-500.0,0.00022465,2]
[342154542,1731513044765,-500.0,0.00022465,2]
[342154543,1731513044776,-500.0,0.00022465,2]
[342154544,1731513044786,-1500.0,0.00022522,2]
[342154545,1731513044796,-153.0,0.00022614,2]
[342154546,1731513044806,-153.0,0.00022614,2]
[342154547,1731513044816,-153.0,0.00022614,2]
[342154548,1731513044825,-500.0,0.0002265,2]
[342154549,1731513044838,-500.0,0.00022739,2]
[342154550,1731513044848,-500.0,0.00022739,2]
[342154551,1731513044858,-1523.09,0.00022739,2]
[342154552,1731513044869,-500.0,0.00022739,2]
[342154553,1731513044879,-1175.72,0.00022739,2]
[342154554,1731513044889,-921.99,0.00022739,2]
[342154555,1731513044898,-1181.6,0.00022739,2]
[342154556,1731513044908,-510.77,0.00022739,2]
[342154557,1731513044918,-1602.99,0.00022739,2]
[342154558,1731513044929,-599.44,0.00022739,2]
[342154559,1731513044939,-500.0,0.00022739,2]
[342154560,1731513044950,-4357.13,0.00022739,2]
[342154561,1731513044960,-500.0,0.00022739,2]
[342154562,1731513044970,-500.0,0.00022739,2]
[342154563,1731513044980,-193.09,0.00022739,2]
[342154564,1731513044991,-23979.12242666,0.00022913,2]
[342154565,1731513045001,-500.0,0.00022925,2]
[342154566,1731513045012,-500.0,0.00022925,2]
[342154567,1731513045022,-242.26513556,0.00023,2]
[342154568,1731513045032,-294.0,0.00023,2]
[342154569,1731513045041,-525.84002134,0.00023013,2]
[342154570,1731513045052,-500.0,0.00023013,2]
[342154571,1731513045061,-1523.09,0.00023013,2]
[342154572,1731513045072,-500.0,0.00023013,2]
[342154573,1731513045087,-1175.72,0.00023013,2]
[342154574,1731513045097,-921.99,0.00023013,2]
[342154575,1731513045106,-1181.6,0.00023013,2]
[342154576,1731513045116,-510.77,0.00023013,2]
[342154577,1731513045126,-1602.99,0.00023013,2]
[342154578,1731513045135,-500.0,0.00023013,2]
[342154579,1731513045144,-4357.13,0.00023013,2]
[342154580,1731513045154,-500.0,0.00023013,2]
[342154581,1731513045164,-500.0,0.00023013,2]
[342154582,1731513045173,-660.57499591,0.00023021,2]
[342154583,1731513045183,-228.49216051,0.00023287,2]
[342154584,1731513045192,-1523.09,0.00023287,2]
[342154585,1731513045201,-500.0,0.00023287,2]
[342154586,1731513045211,-1175.72,0.00023287,2]
[342154587,1731513045220,-921.99,0.00023287,2]
[342154588,1731513045229,-1181.6,0.00023287,2]
[342154589,1731513045239,-510.77,0.00023287,2]
[342154590,1731513045248,-1602.99,0.00023287,2]
[342154591,1731513045257,-500.0,0.00023287,2]
[342154592,1731513045266,-4357.13,0.00023287,2]
[342154593,1731513045275,-500.0,0.00023287,2]
[342154594,1731513045285,-500.0,0.00023287,2]
[342154595,1731513045294,-294.0,0.00023288,2]
[342154596,1731513045303,-1120.21699977,0.00023473,2]
[342154597,1731513045312,-1523.09,0.00023561,2]
[342154598,1731513045322,-500.0,0.00023561,2]
[342154599,1731513045337,-1175.72,0.00023561,2]
[342154600,1731513045349,-921.99,0.00023561,2]
[342154601,1731513045358,-1181.6,0.00023561,2]
[342154602,1731513045368,-510.77,0.00023561,2]
[342154603,1731513045378,-1602.99,0.00023561,2]
[342154604,1731513045387,-500.0,0.00023561,2]
[342154605,1731513045396,-4357.13,0.00023561,2]
[342154606,1731513045406,-500.0,0.00023561,2]
[342154607,1731513045416,-500.0,0.00023561,2]
[342154608,1731513045425,-12640.56584915,0.00023721,2]
[342154609,1731513045434,-2000.0,0.0002382,2]
[342154610,1731513045443,-1523.09,0.00023835,2]
[342154611,1731513045453,-500.0,0.00023835,2]
[342154612,1731513045463,-1175.72,0.00023835,2]
[342154613,1731513045473,-921.99,0.00023835,2]
[342154614,1731513045482,-1181.6,0.00023835,2]
[342154615,1731513045492,-510.77,0.00023835,2]
[342154616,1731513045501,-1602.99,0.00023835,2]
[342154617,1731513045511,-500.0,0.00023835,2]
[342154618,1731513045521,-4357.13,0.00023835,2]
[342154619,1731513045530,-500.0,0.00023835,2]
[342154620,1731513045539,-500.0,0.00023835,2]
[342154621,1731513045548,-18183.79455059,0.00024,2]
[342154622,1731513045558,-150.112233,0.00024,6]
[342154623,1731513045567,-660.57499591,0.00024034,2]
[342154624,1731513045577,-1523.09,0.00024109,2]
[342154625,1731513045591,-500.0,0.00024109,2]
[342154626,1731513045601,-1175.72,0.00024109,2]
[342154627,1731513045611,-921.99,0.00024109,2]
[342154628,1731513045620,-1181.6,0.00024109,2]
[342154629,1731513045631,-510.77,0.00024109,2]
[342154630,1731513045640,-1602.99,0.00024109,2]
[342154631,1731513045650,-500.0,0.00024109,2]
[342154632,1731513045660,-4357.13,0.00024109,2]
[342154633,1731513045669,-500.0,0.00024109,2]
[342154634,1731513045679,-500.0,0.00024109,2]
[342154635,1731513045689,-3200.0,0.00024114,2]
[342154636,1731513045701,-500.249,0.00024114,2]
[342154637,1731513045711,-294.0,0.00024164,2]
[342154638,1731513045720,-191.533,0.00024222,2]
[342154639,1731513045730,-150.858,0.00024315,2]
[342154640,1731513045739,-530.561,0.00024315,2]
[342154641,1731513045750,-1117.0,0.00024315,2]
[342154642,1731513045760,-2392.0,0.00024315,2]
[342154643,1731513045770,-1523.09,0.00024383,2]
[342154644,1731513045783,-500.0,0.00024383,2]
[342154645,1731513045794,-1175.72,0.00024383,2]
[342154646,1731513045803,-921.99,0.00024383,2]
[342154647,1731513045812,-1181.6,0.00024383,2]
[342154648,1731513045822,-510.77,0.00024383,2]
[342154649,1731513045838,-1602.99,0.00024383,2]
[342154650,1731513045965,-500.0,0.00024383,2]
[342154651,1731513045976,-4357.13,0.00024383,2]
[342154652,1731513045987,-500.0,0.00024383,2]
[342154653,1731513045997,-166.22110633,0.00024383,2]
[342154654,1731513046008,-150.112233,0.000244,9]
[342154655,1731513046019,-487.22658527,0.00024579,2]
[342154656,1731513046029,-200.0,0.00024657,2]
[342154657,1731513046039,-1523.09,0.00024657,2]
[342154658,1731513046049,-500.0,0.00024657,2]
[342154659,1731513046059,-1175.72,0.00024657,2]
[342154660,1731513046069,-921.99,0.00024657,2]
[342154661,1731513046080,-1181.6,0.00024657,2]
[342154662,1731513046099,-510.77,0.00024657,2]